{"text_format":"1","workbook":"xlsx","n_sheets":4,"sheets":["OsnovniPodatki","Distribucije","XML","BAZA"],"not_rendered":{"charts":0,"images":3,"macros":1,"external_links":0,"defined_names":3,"comments":0,"pivot_tables":0},"unopened":[],"bounds":{"document_bytes":16777216,"sheet_cells":100000,"rows_first":2000,"rows_last":500,"rows_between":2000,"halvings":0,"cell_chars":16384,"cell_head_chars":4096},"cells_cut":0,"cells_raw":0,"read":"whole","date_system":"1900"}

{"sheet":"OsnovniPodatki","index":0,"n_rows":41,"n_cols":8,"rows_kept":41,"cut":false,"hidden":false,"merged":[[17,1,17,2],[18,1,18,2],[19,1,19,2],[16,1,16,2],[10,3,10,4],[13,3,13,4],[17,3,17,4],[2,1,2,4],[12,3,12,4],[11,3,11,4],[16,3,16,4],[3,3,3,4],[4,1,4,4],[5,1,5,4],[15,1,15,2],[15,3,15,4],[12,1,12,2],[11,1,11,2],[9,1,9,2],[10,1,10,2],[13,1,13,2],[14,1,14,2],[14,3,14,4],[9,3,9,4],[34,1,34,4],[40,1,40,4],[25,1,25,4],[20,1,20,2],[18,3,18,4],[19,3,19,4],[20,3,20,4],[23,1,23,4],[35,1,35,4],[36,1,36,4]]}
[]
[]
[null,{"$f":"IF(BAZA!N18>0,\"Neizpolnjen ali nepravilno izpolnjen obrazec ni mogoče oddati!\",\"\")","v":"Neizpolnjen ali nepravilno izpolnjen obrazec ni mogoče oddati!"}]
[]
[null,"Priglasitev dejavnosti Agenciji za energijo",null,null,null,"v.1.04"]
[null,"Dejavnosti distribucije toplote ali drugih energetskih plinov"]
[]
[null,"OSNOVNI PODATKI O PRIGLASITELJU (DISTRIBUTERJU):"]
[]
[null,"Pravni status priglasitelja:",null,"Pravna oseba",null,null,{"$f":"IF(H10=1,\"û\",\"ü\")","v":"ü"},{"$f":"IF(D10=\"\",1,0)","v":0}]
[null,"Firma",null,null,null,null,{"$f":"IF(H11=1,\"û\",\"ü\")","v":"û"},{"$f":"IF(OR(AND($D$10=\"Pravna oseba\",D11<>\"\"),AND($D$10<>\"Pravna oseba\",D11=\"\"))=TRUE,0,1)","v":1}]
[null,{"$f":"IF(D10=\"Drugo\",\"Ime\",\"Ime zakonitega zastopnika\")","v":"Ime zakonitega zastopnika"},null,null,null,null,{"$f":"IF(H12=1,\"û\",\"ü\")","v":"û"},{"$f":"IF(D12=\"\",1,0)","v":1}]
[null,{"$f":"IF(D10=\"Drugo\",\"Priimek\",\"Priimek zakonitega zastopnika\")","v":"Priimek zakonitega zastopnika"},null,null,null,null,{"$f":"IF(H13=1,\"û\",\"ü\")","v":"û"},{"$f":"IF(D13=\"\",1,0)","v":1}]
[null,{"$f":"IF(D10<>\"Pravna oseba\",\"Naslov opravljanja dejavnosti\",\"Sedež firme\")","v":"Sedež firme"},null,null,null,null,"û",{"$f":"IF(D14=\"\",1,0)","v":1}]
[null,"Naslov stalnega prebivališča",null,null,null,null,{"$f":"IF(H15=1,\"û\",\"ü\")","v":"ü"},{"$f":"IF(OR(AND($D$10=\"Pravna oseba\",D15=\"\"),AND($D$10<>\"Pravna oseba\",D15<>\"\"))=TRUE,0,1)","v":0}]
[null,"Število priglašenih distribucijskih sistemov",null,{"$f":"COUNTA(tbl_XML_Distrib[ID])","v":2}]
[null,"Matična številka",null,null,null,null,"û",{"$f":"IF(D17=\"\",1,0)","v":1}]
[null,"Telefonska številka priglasitelja*"]
[null,"Mobilna številka priglasitelja*"]
[null,"Elektronski naslov priglasitelja*"]
[null,"Uradna internetna stran priglasitelja*"]
[]
[null,"Opomba:"]
[]
[]
[null,"Na podlagi prvega odstavka 287. člena Energetskega zakona (Uradni list RS, št. 17/14, 81/15, v nadaljevanju EZ-1), mora distributer toplote ali drugih energetskih plinov pred pričetkom in po prenehanju opravljanja dejavnosti distribucije toplote ali drugih energetskih plinov na določenem distribucijskem sistemu o tem obvestiti Agencijo za energijo (v nadaljevanju agencija).\n\nNa podlagi drugega odstavka 287. člena EZ-1, za namen vodenja evidenc izvajalcev dejavnosti distribucije toplote ali drugih energetskih plinov agencija, skladno z zakonom, ki ureja varovanje osebnih podatkov in Splošno uredbo o varstvu podatkov (GDPR), zbira, vodi in obdeluje naslednje osebne podatke distributerja, ki je fizična oseba (Pravni status priglasitelja \"drugo\"): ime, priimek, naslov stalnega prebivališča in naslov opravljanja dejavnosti.\n"]
[null,null,null,"Kraj:",null,null,{"$f":"IF(H27=1,\"û\",\"ü\")","v":"û"},{"$f":"IF(E27=\"\",1,0)","v":1}]
[null,null,null,"Datum:",null,null,{"$f":"IF(H28=1,\"û\",\"ü\")","v":"û"},{"$f":"IF(E28=\"\",1,0)","v":1}]
[]
[null,null,null,"Podpis odgovorne osebe:"]
[]
[]
[null,"Način izpolnitve priglasitve:"]
[]
[null,"a) Priglasitev dejavnosti distribucije toplote ali drugih energetskih plinov na določenem distribucijskem sistemu na podlagi prvega odstavka 287. člena EZ-1 poda pravna ali fizična oseba (priglasitelj) agenciji  pred samim pričetkom opravljanja dejavnosti distribucije toplote ali drugih energetskih plinov na določenem distribucijskem sistemu (nov distribucijski sistem) ter v primeru, ko obstoječ distribucijski sistem še ni priglašen agenciji (obstoječ distribucijski sistem) in po prenehanju opravljanja dejavnosti (ukinjen distribucijski sistem).\n\nPriglasitelj poda priglasitev za en ali več distribucijskih sistemov tako, da poleg izpolnitve obveznih podatkov na listu 1 (list Osnovni Podatki) obrazca 1 (v sivinsko označena polja ne vpisujemo podatke, vnosna polja označena z * so neobvezna), za posamezen distribucijski sistem vnese zahtevane podatke v Tabelo 1 (list Distribucija). Priglasitev je možno oddati le v primeru, ko niso zaznane osnovne napake pravilnega vnosa (oznaka X poleg vnosnega polja oziroma neizpisanega opozorila o napakah pri vnosu podatkov). V kolikor se priglasitev izvaja le za en distribucijski sistem, priglasitelj na zavihku obrazca \"Distribucije\", v tabeli 1, izbriše v drugi vrstici zaporedno številko vrstice stolpca ID."]
[null,"b) Priglasitelj poda priglasitev novega oziroma obstoječega distribucijskega sistema tako, da v Tabeli 1 (list Distribucija) izbere v stolpcu »Status distribucijskega sistema« njegov status (\"Nov\"; \"Obstoječ\"). Pri tem morajo biti v omenjeni tabeli izpolnjena vsa polja v vrstici posameznega distribucijskega sistema (posamezni distribucijski sistemi so označeni z zaporedno številko v stolpcu »ID«), razen polja stolpca »Konec opravljanja dejavnosti« (ostane neizpolnjeno)!\n\nc) Priglasitelj po prenehanju opravljanja dejavnosti (ukinjen distribucijski sistem) poda agenciji priglasitev prenehanja dejavnosti tako, da v Tabeli 1 (list Distribucija) izbere v stolpcu »Status distribucijskega sistema« status \"Ukinjen\"). Pri tem morajo biti v omenjeni tabeli izpolnjena vsa polja v vrstici posameznega ukinjenega distribucijskega sistema!\n"]
[null,"d) Pravilno izpolnjen obrazec priglasitelj odda agenciji  po navadni in elektronski pošti na naslov: Agencija za energijo, Strossmayerjeva 30, SI-2000 Maribor, s pripisom »Priglasitev dejavnosti distribucije toplote ali drugih energetskih plinov« in na elektronski naslov priglasitev.dt-dep@agen-rs.si s pomočjo aktiviranja gumba »Shrani in pošlji obrazec«, ki omogoča avtomatsko kreiranje e-poštnega sporočila in posredovanje Excelovega obrazca agenciji (pri izpolnjevanju obrazca v elektronski obliki (program Microsoft Excel 2010 ali višji) morajo biti za izvedbo avtomatiziranega posredovanja obrazca agenciji omogočeni makri)."]
[]
[null,"Varovanje osebnih podatkov:"]
[]
[null,"Agencija bo osebne podatke fizične osebe uporabljala izključno za namen vodenja evidenc izvajalcev dejavnosti distribucije toplote ali drugih energetskih plinov; z  osebnimi podatki bo ravnala v skladu z zakonom, ki ureja varstvo osebnih podatkov in GDPR. Agencija bo osebne podatke posredovala drugim uporabnikom le, če bo za to obstajala zakonska obveznost ali v anonimizirani obliki za statistične potrebe. \n\nKadar telefonska in/ali mobilna številka priglasitelja ter elektronski naslov firme, ki se dajeta prostovoljno in izključno za namen komuniciranja v primeru potrebnih dodatnih pojasnil v zvezi s posredovanimi podatki, predstavlja osebni podatek fizične osebe, se agencija zavezuje, da bo s temi podatki ravnala v skladu z zakonom, ki ureja varstvo osebnih podatkov in GDPR. Agencija bo navedene podatke shranjevala in uporabljala le toliko časa, dokler bo to potrebno za dosego namena, zaradi katerega so bili obdelovani in bo po izpolnitvi namena osebne podatke izbrisala. Agencija navedenih osebnih podatkov ne bo posredovala drugim uporabnikom. Posameznik, na katerega se osebni podatki nanašajo, ima pravice, ki mu jih zagotavljata zakon, ki ureja varstvo osebnih podatkov in GDPR; kadarkoli lahko zahteva dostop do svojih osebnih podatkov, popravek, izbris, omejitev ali prenos osebnih podatkov; prav tako lahko vloži pritožbo pri Informacijskem pooblaščencu, če meni, da je pri obdelavi njegovih osebnih podatkov prišlo do kršitve nacionalne zakonodaje, ki ureja varstvo osebnih podatkov ali GDPR. \nČe ima posameznik na katerega se osebni podatki nanašajo kakršnokoli vprašanje, povezano z obdelavo svojih osebnih podatkov, jih lahko pošlje na elektronski naslov pri agenciji pooblaščene osebe za varstvo osebnih podatkov: dpo@agen-rs.si.\n"]

{"sheet":"Distribucije","index":1,"n_rows":14,"n_cols":25,"rows_kept":14,"cut":false,"hidden":false,"merged":[[1,4,1,9],[2,4,2,9],[0,4,0,9]]}
[null,null,null,null,{"$f":"IF(BAZA!N20>0,\"Neizpolnjen ali nepravilno izpolnjen obrazec ni mogoče oddati!\",\"\")","v":"Neizpolnjen ali nepravilno izpolnjen obrazec ni mogoče oddati!"},null,null,null,null,null,null,null,null,null,null,null,null,null,null,null,null,null,"Daljinsko ogrevanje",null,"Javni gospodarski zavod"]
[null,null,null,null,{"$f":"OsnovniPodatki!B5","v":"Priglasitev dejavnosti Agenciji za energijo"},null,null,null,null,null,null,null,null,null,null,null,null,null,null,null,null,null,"Daljinsko hlajenje",null,"Javno-zasebno partnerstvo"]
[null,null,null,null,{"$f":"OsnovniPodatki!B6","v":"Dejavnosti distribucije toplote ali drugih energetskih plinov"},null,null,null,null,null,null,null,null,null,null,null,null,null,null,null,null,null,"Distribucija drugih enegetskih plinov",null,"Koncesionirana gospodarska javna služba"]
[null,null,null,null,null,null,null,null,null,null,null,null,"Matična številka:",null,{"$f":"IF(OsnovniPodatki!D17=0,\"\",OsnovniPodatki!D17)","v":""},null,null,null,null,null,null,null,null,null,"Režijski obrat"]
["Naziv priglasitelja:",null,null,null,null,null,null,null,null,null,null,null,"Datum priglasitve:",null,{"$f":"IF(OsnovniPodatki!E28=0,\"\",OsnovniPodatki!E28)","v":""},null,null,null,null,null,null,null,null,null,"Drugo"]
[null,null,{"$f":"IF(BAZA!M22=0,\"\",BAZA!M22)","v":""},null,null,null,null,null,null,null,null,null,null,null,null,null,null,null,null,null,null,null,null,null,"Ni GJS"]
[null,null,{"$f":"IF(OsnovniPodatki!D14=0,\"\",OsnovniPodatki!D14)","v":""}]
[null,null,"Tabela: 1"]
[null,null,"Osnovni podatki o priglašenih distribucijskih sistemih",null,null,null,null,null,null,null,null,"Osnovne tehnične značilnosti distribucijskega sistema"]
[null,"ID","Naziv oz. oznaka distribucijskega sistema","Lokacija distribucijskega sistema / makro (občina)","Lokacija distribucijskega sistema / mikro (kraj)","Status distribucijskega sistema","Začetek opravljanja \ndejavnosti","Konec \nopravljanja dejavnosti","Izvajanje distribucije \nv obliki \ngospodarske javne službe (GJS)?","Oblika izvajanja gospodarske javne službe (GJS)*","Podeljena izključna pravica izvajanja GJS?","Vrsta \ndistribucijskega sistema\n(osnovni namen)","Dolžina trase\ndistribucijskega sistema","Skupna nazivna moč priključenih naprav odjemalcev na distribucijskem sistemu ","Število odjemalcev na distribucijskem sistemu"]
[null,"Enota",null,null,null,null,null,null,null,null,null,null,"[m]","[kW]","[/]"]
[null,"ID","Distribucija_Naziv","Distribucija_Lokacija_Makro","Distribucija_Lokacija_Mikro","Prigl_Namen","Datum_Start","Datum_End","GJS","GJS_Oblika","GJS_IPr","Distribucija_Vrsta","Dolzina_[m]","Nmoc_[kW]","ODJ_St","KontrForm"]
[null,1,null,null,null,null,null,null,null,null,null,null,null,null,null,{"$f":"IF(B13=\"\",\"ü\",IF(OR(AND(F13=\"Ukinjen\",H13<>\"\",COUNTA(B13:O13)=14,OR(AND(I13=\"NE\",J13=\"Ni GJS\"),AND(I13=\"DA\",J13<>\"Ni GJS\"))),AND(F13<>\"Ukinjen\",H13=\"\",G13<>\"\",COUNTA(B13:O13)=13,OR(AND(I13=\"NE\",J13=\"Ni GJS\"),AND(I13=\"DA\",J13<>\"Ni GJS\"))))=TRUE,\"ü\",\"û\"))","v":"û"}]
[null,2,null,null,null,null,null,null,null,null,null,null,null,null,null,"û"]

{"sheet":"XML","index":2,"n_rows":0,"n_cols":0,"rows_kept":0,"cut":false,"hidden":true,"merged":[]}

{"sheet":"BAZA","index":3,"n_rows":211,"n_cols":21,"rows_kept":211,"cut":false,"hidden":true,"merged":[]}
[null,null,null,"ID_OB","Občina",null,null,null,null,null,null,"Generator imen datotek"]
[null,null,null,1,"Mestna občina Celje"]
[null,null,null,2,"Mestna občina Koper",null,null,null,null,null,null,null,null,null,null,null,null,null,null,"Fiksni ID oddaje poročila"]
[null,null,null,3,"Mestna občina Kranj",null,null,null,null,null,null,{"$f":"OsnovniPodatki!D17","v":0},"DT-DEP_AE - Priglasitev dejavnosti_",{"$f":"CONCATENATE(TEXT(YEAR(TODAY()),\"####\"), RIGHT(\"0\"&TEXT(MONTH(TODAY()),\"##\"),2),RIGHT(\"0\"&TEXT(DAY(TODAY()),\"##\"),2))","v":"20180730"},{"$f":"CONCATENATE(P5,Q5,R5)","v":"112950"},{"$f":"M4&L4&\"_\"&N4&\"-\"&O4","v":"DT-DEP_AE - Priglasitev dejavnosti_0_20180730-112950"},null,null,null,null,"DT-DEP_AE - Priglasitev dejavnosti_0_20140609-111848"]
[null,null,null,4,"Mestna občina Ljubljana",null,null,null,null,null,null,null,null,{"$f":"TEXT(YEAR(TODAY()),\"####\")","v":"2018"},{"$f":"NOW()","v":43311.479046180553},{"$f":"RIGHT(\"0\"&TEXT(HOUR(NOW()),\"##\"),2)","v":"11"},{"$f":"RIGHT(\"0\"&TEXT(MINUTE(NOW()),\"##\"),2)","v":"29"},{"$f":"RIGHT(\"0\"&TEXT(SECOND(NOW()),\"##\"),2)","v":"50"},null,null,41799.471392361113]
[null,null,null,5,"Mestna občina Maribor",null,null,null,null,null,null,"Generator identa poročila",null,null,{"$f":"TODAY()","v":"2018-07-30"},null,null,null,null,null,"9.6.2014"]
[null,null,null,6,"Mestna občina Murska Sobota",null,null,null,null,null,null,null,null,null,null,{"$f":"L4&\"_\"&N4&\"-\"&O4","v":"0_20180730-112950"},null,null,null,null,"5075556000_20140509-080603"]
[null,null,null,7,"Mestna občina Nova Gorica",null,null,null,null,null,null,null,null,null,null,null,null,null,null,null,{"$f":"OsnovniPodatki!D11","v":0}]
[null,null,null,8,"Mestna občina Novo mesto",null,null,null,null,null,null,null,null,null,null,null,null,null,null,null,{"$f":"OsnovniPodatki!D14","v":0}]
[null,null,null,9,"Mestna občina Ptuj",null,null,null,null,null,null,"Napake"]
[null,null,null,10,"Mestna občina Slovenj Gradec",null,null,null,null,null,null,null,{"$f":"BAZA!N18+BAZA!N19","v":9}]
[null,null,null,11,"Mestna občina Velenje"]
[null,null,null,12,"Občina Ajdovščina",null,null,null,null,null,null,"Sporočilo"]
[null,null,null,13,"Občina Apače",null,null,null,null,null,null,null,{"$f":"\"Agenciji za energijo posredujemo priglasitev dejavnosti distribucije toplote ali drugih energetskih plinov\n\n\"&U8&\" \n\"&U9","v":"Agenciji za energijo posredujemo priglasitev dejavnosti distribucije toplote ali drugih energetskih plinov\n\n0 \n0"}]
[null,null,null,14,"Občina Beltinci"]
[null,null,null,15,"Občina Benedikt"]
[null,null,null,16,"Občina Bistrica ob Sotli"]
[null,null,null,17,"Občina Bled",null,null,null,null,null,null,null,"Število napak - OsnovniPodatki",{"$f":"SUM(OsnovniPodatki!H:H)","v":7}]
[null,null,null,18,"Občina Bloke",null,null,null,null,null,null,null,"Število napak - distribucija",{"$f":"MAX(N20:N21)","v":2}]
[null,null,null,19,"Občina Bohinj",null,null,null,null,null,null,null,"Število napak - distribucija_1",{"$f":"COUNTIF(Distribucije!P:P,\"û\")","v":2}]
[null,null,null,20,"Občina Borovnica",null,null,null,null,null,null,null,"Število napak - distribucija_2",{"$f":"IF(SUM(H25:L25,H27:L27,H29:I29)/12/H25=1,0,1)","v":1}]
[null,null,null,21,"Občina Bovec",null,null,null,null,null,null,null,{"$f":"IF(OsnovniPodatki!D10=\"Pravna oseba\",OsnovniPodatki!D11,OsnovniPodatki!D13&\" \"&OsnovniPodatki!D12)","v":0}]
[null,null,null,22,"Občina Braslovče",null,null,null,null,null,null,"Napake - distribucija stolpci"]
[null,null,null,23,"Občina Brda",null,null,"B","C","D","E","F"]
[null,null,null,24,"Občina Brezovica",null,null,{"$f":"COUNTA(tbl_XML_Distrib[ID])","v":2},{"$f":"COUNTA(tbl_XML_Distrib[Distribucija_Naziv])","v":0},{"$f":"COUNTA(tbl_XML_Distrib[Distribucija_Lokacija_Makro])","v":0},{"$f":"COUNTA(tbl_XML_Distrib[Distribucija_Lokacija_Mikro])","v":0},{"$f":"COUNTA(tbl_XML_Distrib[Prigl_Namen])","v":0}]
[null,null,null,25,"Občina Brežice",null,null,"I","J","K","L","M"]
[null,null,null,26,"Občina Cankova",null,null,{"$f":"COUNTA(tbl_XML_Distrib[GJS])","v":0},{"$f":"COUNTA(tbl_XML_Distrib[GJS_Oblika])","v":0},{"$f":"COUNTA(tbl_XML_Distrib[GJS_IPr])","v":0},{"$f":"COUNTA(tbl_XML_Distrib[Distribucija_Vrsta])","v":0},{"$f":"COUNTA(tbl_XML_Distrib[Dolzina_'[m']])","v":0}]
[null,null,null,27,"Občina Cerklje na Gorenjskem",null,null,"N","O"]
[null,null,null,28,"Občina Cerknica",null,null,{"$f":"COUNTA(tbl_XML_Distrib[Nmoc_'[kW']])","v":0},{"$f":"COUNTA(tbl_XML_Distrib[ODJ_St])","v":0}]
[null,null,null,29,"Občina Cerkno"]
[null,null,null,30,"Občina Cerkvenjak",null,null,{"$f":"SUM(H25:L25,H27:L27,H29:I29)/12/H25","v":8.3333333333333329E-2}]
[null,null,null,31,"Občina Cirkulane"]
[null,null,null,32,"Občina Črenšovci"]
[null,null,null,33,"Občina Črna na Koroškem"]
[null,null,null,34,"Občina Črnomelj"]
[null,null,null,35,"Občina Destrnik"]
[null,null,null,36,"Občina Divača"]
[null,null,null,37,"Občina Dobje"]
[null,null,null,38,"Občina Dobrepolje"]
[null,null,null,39,"Občina Dobrna"]
[null,null,null,40,"Občina Dobrova - Polhov Gradec"]
[null,null,null,41,"Občina Dobrovnik"]
[null,null,null,42,"Občina Dol pri Ljubljani"]
[null,null,null,43,"Občina Dolenjske Toplice"]
[null,null,null,44,"Občina Domžale"]
[null,null,null,45,"Občina Dornava"]
[null,null,null,46,"Občina Dravograd"]
[null,null,null,47,"Občina Duplek"]
[null,null,null,48,"Občina Gorenja vas - Poljane"]
[null,null,null,49,"Občina Gorišnica"]
[null,null,null,50,"Občina Gorje"]
[null,null,null,51,"Občina Gornja Radgona"]
[null,null,null,52,"Občina Gornji Grad"]
[null,null,null,53,"Občina Gornji Petrovci"]
[null,null,null,54,"Občina Grad"]
[null,null,null,55,"Občina Grosuplje"]
[null,null,null,56,"Občina Hajdina"]
[null,null,null,57,"Občina Hoče - Slivnica"]
[null,null,null,58,"Občina Hodoš - Hodos község"]
[null,null,null,59,"Občina Horjul"]
[null,null,null,60,"Občina Hrastnik"]
[null,null,null,61,"Občina Hrpelje - Kozina"]
[null,null,null,62,"Občina Idrija"]
[null,null,null,63,"Občina Ig"]
[null,null,null,64,"Občina Ilirska Bistrica"]
[null,null,null,65,"Občina Ivančna Gorica"]
[null,null,null,66,"Občina Izola"]
[null,null,null,67,"Občina Jesenice"]
[null,null,null,68,"Občina Jezersko"]
[null,null,null,69,"Občina Juršinci"]
[null,null,null,70,"Občina Kamnik"]
[null,null,null,71,"Občina Kanal ob Soči"]
[null,null,null,72,"Občina Kidričevo"]
[null,null,null,73,"Občina Kobarid"]
[null,null,null,74,"Občina Kobilje"]
[null,null,null,75,"Občina Kočevje"]
[null,null,null,76,"Občina Komen"]
[null,null,null,77,"Občina Komenda"]
[null,null,null,78,"Občina Kostanjevica na Krki"]
[null,null,null,79,"Občina Kostel"]
[null,null,null,80,"Občina Kozje"]
[null,null,null,81,"Občina Kranjska Gora"]
[null,null,null,82,"Občina Križevci"]
[null,null,null,83,"Občina Krško"]
[null,null,null,84,"Občina Kungota"]
[null,null,null,85,"Občina Kuzma"]
[null,null,null,86,"Občina Laško"]
[null,null,null,87,"Občina Lenart"]
[null,null,null,88,"Občina Lendava"]
[null,null,null,89,"Občina Litija"]
[null,null,null,90,"Občina Ljubno"]
[null,null,null,91,"Občina Ljutomer"]
[null,null,null,92,"Občina Log - Dragomer"]
[null,null,null,93,"Občina Logatec"]
[null,null,null,94,"Občina Loška Dolina"]
[null,null,null,95,"Občina Loški Potok"]
[null,null,null,96,"Občina Lovrenc na Pohorju"]
[null,null,null,97,"Občina Luče"]
[null,null,null,98,"Občina Lukovica"]
[null,null,null,99,"Občina Majšperk"]
[null,null,null,100,"Občina Makole"]
[null,null,null,101,"Občina Markovci"]
[null,null,null,102,"Občina Medvode"]
[null,null,null,103,"Občina Mengeš"]
[null,null,null,104,"Občina Metlika"]
[null,null,null,105,"Občina Mežica"]
[null,null,null,106,"Občina Miklavž na Dravskem polju"]
[null,null,null,107,"Občina Miren - Kostanjevica"]
[null,null,null,108,"Občina Mirna Peč"]
[null,null,null,109,"Občina Mislinja"]
[null,null,null,110,"Občina Mokronog - Trebelno"]
[null,null,null,111,"Občina Moravče"]
[null,null,null,112,"Občina Moravske Toplice"]
[null,null,null,113,"Občina Mozirje"]
[null,null,null,114,"Občina Muta"]
[null,null,null,115,"Občina Naklo"]
[null,null,null,116,"Občina Nazarje"]
[null,null,null,117,"Občina Odranci"]
[null,null,null,118,"Občina Oplotnica"]
[null,null,null,119,"Občina Ormož"]
[null,null,null,120,"Občina Osilnica"]
[null,null,null,121,"Občina Pesnica"]
[null,null,null,122,"Občina Piran"]
[null,null,null,123,"Občina Pivka"]
[null,null,null,124,"Občina Podčetrtek"]
[null,null,null,125,"Občina Podlehnik"]
[null,null,null,126,"Občina Podvelka"]
[null,null,null,127,"Občina Poljčane"]
[null,null,null,128,"Občina Polzela"]
[null,null,null,129,"Občina Postojna"]
[null,null,null,130,"Občina Prebold"]
[null,null,null,131,"Občina Preddvor"]
[null,null,null,132,"Občina Prevalje"]
[null,null,null,133,"Občina Puconci"]
[null,null,null,134,"Občina Rače - Fram"]
[null,null,null,135,"Občina Radeče"]
[null,null,null,136,"Občina Radenci"]
[null,null,null,137,"Občina Radlje ob Dravi"]
[null,null,null,138,"Občina Radovljica"]
[null,null,null,139,"Občina Ravne na Koroškem"]
[null,null,null,140,"Občina Razkrižje"]
[null,null,null,141,"Občina Rečica Ob Savinji"]
[null,null,null,142,"Občina Renče - Vogrsko"]
[null,null,null,143,"Občina Ribnica"]
[null,null,null,144,"Občina Ribnica na Pohorju"]
[null,null,null,145,"Občina Rogaška Slatina"]
[null,null,null,146,"Občina Rogašovci"]
[null,null,null,147,"Občina Rogatec"]
[null,null,null,148,"Občina Ruše"]
[null,null,null,149,"Občina Selnica ob Dravi"]
[null,null,null,150,"Občina Semič"]
[null,null,null,151,"Občina Sevnica"]
[null,null,null,152,"Občina Sežana"]
[null,null,null,153,"Občina Slovenska Bistrica"]
[null,null,null,154,"Občina Slovenske Konjice"]
[null,null,null,155,"Občina Sodražica"]
[null,null,null,156,"Občina Solčava"]
[null,null,null,157,"Občina Središče ob Dravi"]
[null,null,null,158,"Občina Starše"]
[null,null,null,159,"Občina Straža"]
[null,null,null,160,"Občina Sveta Ana"]
[null,null,null,161,"Občina Sveta Trojica v Slovenskih goricah"]
[null,null,null,162,"Občina Sveti Andraž v Slovenskih goricah"]
[null,null,null,163,"Občina Sveti Jurij ob Ščavnici"]
[null,null,null,164,"Občina Sveti Jurij v Slovenskih Goricah"]
[null,null,null,165,"Občina Sveti Tomaž"]
[null,null,null,166,"Občina Šalovci"]
[null,null,null,167,"Občina Šempeter - Vrtojba"]
[null,null,null,168,"Občina Šenčur"]
[null,null,null,169,"Občina Šentilj"]
[null,null,null,170,"Občina Šentjernej"]
[null,null,null,171,"Občina Šentjur pri Celju"]
[null,null,null,172,"Občina Šentrupert"]
[null,null,null,173,"Občina Škocjan"]
[null,null,null,174,"Občina Škofja Loka"]
[null,null,null,175,"Občina Škofljica"]
[null,null,null,176,"Občina Šmarje pri Jelšah"]
[null,null,null,177,"Občina Šmarješke Toplice"]
[null,null,null,178,"Občina Šmartno ob Paki"]
[null,null,null,179,"Občina Šmartno pri Litiji"]
[null,null,null,180,"Občina Šoštanj"]
[null,null,null,181,"Občina Štore"]
[null,null,null,182,"Občina Tabor"]
[null,null,null,183,"Občina Tišina"]
[null,null,null,184,"Občina Tolmin"]
[null,null,null,185,"Občina Trbovlje"]
[null,null,null,186,"Občina Trebnje"]
[null,null,null,187,"Občina Trnovska vas"]
[null,null,null,188,"Občina Trzin"]
[null,null,null,189,"Občina Tržič"]
[null,null,null,190,"Občina Turnišče"]
[null,null,null,191,"Občina Velika Polana"]
[null,null,null,192,"Občina Velike Lašče"]
[null,null,null,193,"Občina Veržej"]
[null,null,null,194,"Občina Videm"]
[null,null,null,195,"Občina Vipava"]
[null,null,null,196,"Občina Vitanje"]
[null,null,null,197,"Občina Vodice"]
[null,null,null,198,"Občina Vojnik"]
[null,null,null,199,"Občina Vransko"]
[null,null,null,200,"Občina Vrhnika"]
[null,null,null,201,"Občina Vuzenica"]
[null,null,null,202,"Občina Zagorje ob Savi"]
[null,null,null,203,"Občina Zavrč"]
[null,null,null,204,"Občina Zreče"]
[null,null,null,205,"Občina Žalec"]
[null,null,null,206,"Občina Železniki"]
[null,null,null,207,"Občina Žetale"]
[null,null,null,208,"Občina Žiri"]
[null,null,null,209,"Občina Žirovnica"]
[null,null,null,210,"Občina Žužemberk"]